fUST/lending_fUST_20251024
["ID","MTS","AMOUNT","RATE_DAILY","PERIOD"]
[392257919,1761284957355,-300.0,0.00020463,2]
[392257920,1761284957403,-235.28,0.00020464,2]
[392257921,1761284957448,-389.23524672,0.00020473,2]
[392257922,1761284957494,-2535.568878,0.00020473,2]
[392257923,1761284957537,-11.12974396,0.00020498,2]
[392257924,1761284975215,163.0,9.8e-07,2]
[392257925,1761284991718,188.67,0.00020654,30]
[392257966,1761285032619,-315.3213016,0.00019944,2]
[392257968,1761285032629,-3511.7954041,0.00020082,2]
[392257970,1761285032639,-8414.2772111,0.00020082,2]
[392257972,1761285032647,-220.12,0.00020284,2]
[392257973,1761285032657,-1200.0,0.00020292,2]
[392257975,1761285032667,-300.0,0.00020292,2]
[392257977,1761285032676,-5000.0,0.00020293,2]
[392257979,1761285032686,-300.0,0.00020497,2]
[392257981,1761285032695,-300.0,0.00020497,2]
[392257982,1761285032704,-300.0,0.00020497,2]
[392257984,1761285032714,-278.434899,0.00020497,2]
[392257986,1761285032724,-270.0,0.00020497,2]
[392257988,1761285032735,-249.57917711,0.00020497,2]
[392257990,1761285032745,-553.72766055,0.00020497,2]
[392257991,1761285032754,-506.24453553,0.00020497,2]
[392257993,1761285032765,-596.31694438,0.00020497,2]
[392257995,1761285032774,-392.66675157,0.00020497,2]
[392257997,1761285032785,-1188.87025604,0.00020498,2]
[392257999,1761285032794,-5598.4313211,0.00020498,2]
[392258001,1761285032804,-25011.12332904,0.00020499,2]
[392258137,1761285043843,-5000.0,0.00020294,2]
[392258138,1761285043853,-547.68005354,0.00020473,2]
[392258140,1761285043864,-18283.27647426,0.00020499,2]
[392258142,1761285043875,-300.0,0.000205,2]
[392258144,1761285043885,-500.0,0.00020531,2]
[392258147,1761285043895,-24185.25921433,0.00020535,2]
[392258343,1761285046922,-527.3554621,0.00020535,2]
[392258345,1761285046934,-1437.1938843,0.00020535,2]
[392258429,1761285047846,-8528.49145041,0.00020535,2]
[392258508,1761285070409,183.03,0.00020691,30]
[392258509,1761285149215,179.03,0.00020663,30]
[392258510,1761285229316,175.13,0.00020599,30]
[392258511,1761285308982,171.31,0.00020622,30]
[392258512,1761285312007,-5000.0,0.00019899,2]
[392258513,1761285317947,-500.0,0.000199,2]
[392258514,1761285318007,-395.2902614,0.0002,2]
[392258515,1761285318067,-406.30335468,0.0002041,2]
[392258516,1761285318123,-1200.0,0.00020472,2]
[392258517,1761285318183,-2298.60615095,0.00020473,2]
[392258518,1761285318247,-191.61046594,0.00020495,2]
[392258519,1761285324014,-5000.0,0.00019701,2]
[392258520,1761285327323,-16.38953406,0.00020495,2]
[392258521,1761285327384,-1200.0,0.00020496,2]
[392258522,1761285327439,-300.0,0.00020498,2]
[392258523,1761285327500,-3214.16044091,0.00020499,2]
[392258524,1761285327679,-467.73771429,0.00020499,2]
[392258525,1761285327735,-71.17233577,0.00020499,2]
[392258526,1761285327800,-500.0,0.00020499,2]
[392258527,1761285327851,-277.31019678,0.00020499,2]
[392258528,1761285327904,-309.37211,0.00020499,2]
[392258529,1761285327960,-562.49392837,0.00020499,2]
[392258530,1761285328020,-500.0,0.00020499,2]
[392258531,1761285328075,-436.29639064,0.00020499,2]
[392258532,1761285328131,-300.0,0.00020499,2]
[392258533,1761285328186,-165.67670858,0.00020499,2]
[392258534,1761285328243,-500.0,0.00020499,2]
[392258535,1761285328662,-2755.36665972,0.000205,2]
[392258536,1761285333083,-10000.01,0.000205,2]
[392258537,1761285333247,-10000.01,0.000205,2]
[392258538,1761285371682,-5000.0,0.00020295,2]
[392258539,1761285371765,-0.01,0.00020418,2]
[392258540,1761285374481,-161.25271396,0.00020418,2]
[392258541,1761285378055,165.015504,0.00019983,2]
[392258542,1761285386603,-300.0,0.00020499,2]
[392258543,1761285386705,-9234.994496,0.000205,2]
[392258552,1761285391933,197.02,0.00020642,30]
[392258553,1761285392665,-205.64574969,0.00019799,2]
[392258554,1761285392720,-229.86,0.00020437,2]
[392258555,1761285392771,-4128.99850062,0.00020497,2]
[392258556,1761285392891,-871.00149938,0.00020497,2]
[392258569,1761285471534,194.25,0.0001897,30]
[392258570,1761285472078,242.82,0.0001976,30]
[392258571,1761285472444,291.38,0.00020551,30]
[392258572,1761285550260,191.45,0.00020798,30]
[392258573,1761285574751,193.1049761,0.00019321,2]
[392258574,1761285620133,-5000.0,0.00019601,2]
[392258575,1761285620400,-200.0,0.00019601,2]
[392258576,1761285629265,5000.0,0.00019601,2]
[392258577,1761285629381,187.28,0.00018989,30]
[392258578,1761285629839,234.09,0.0001978,30]
[392258579,1761285630254,280.91,0.00020571,30]
[392258580,1761285652123,5000.0,0.00019436,2]
[392258581,1761285663388,2769.431438,0.00019313,2]
[392258582,1761285674760,2230.578562,0.00019436,2]
[392258583,1761285674815,2769.421438,0.00019436,2]
[392258584,1761285675501,1646.77383282,0.00019231,2]
[392258585,1761285687678,-1646.77383282,0.00019503,2]
[392258586,1761285698072,5000.0,0.00019503,2]
[392258587,1761285708699,188.62,0.00020357,30]
[392258588,1761285733953,153.78228313,0.00019,2]
[392258589,1761285737262,-954.3318175,0.00019405,2]
[392258590,1761285752151,-5000.0,0.00019601,2]
[392258591,1761285767377,0.01,0.00019601,2]
[392258592,1761285767418,4999.99,0.00019601,2]
[392258593,1761285775912,1958.99700093,0.00019389,2]
[392258594,1761285787607,191.05,0.00018871,30]
[392258595,1761285788035,238.82,0.00019657,30]
[392258596,1761285788461,286.58,0.00020443,30]
[392258597,1761285792020,5000.0,0.00019389,2]
[392258598,1761285809175,2309.74,0.000201,10]
[392258599,1761285814896,3041.01299907,0.00019389,2]
[392258600,1761285814943,1958.98700093,0.00019389,2]
[392258601,1761285820183,2309.73,0.00019389,2]
[392258602,1761285837979,5000.0,0.00019389,2]
[392258603,1761285860682,731.29299907,0.00019389,2]
[392258604,1761285860727,4268.70700093,0.00019389,2]
[392258605,1761285867095,185.24,0.0001868,30]
[392258606,1761285867509,231.55,0.00019458,30]
[392258607,1761285868010,277.86,0.00020237,30]
[392258608,1761285868590,324.17,0.00021015,30]
[392258609,1761285877445,250.0,0.00018899,2]
[392258610,1761285883294,5000.0,0.00019389,2]
[392258611,1761285886709,-3858.8731527,0.00019479,2]
[392258612,1761285886758,-341.17504813,0.000196,2]
[392258613,1761285886807,-430.40235523,0.000197,2]
[392258614,1761285886858,-336.0,0.00019748,2]
[392258615,1761285892553,-480.12928475,0.00019601,2]
[392258616,1761285892599,-205.64574969,0.00019799,2]
[392258617,1761285892649,-336.0,0.00019839,2]
[392258618,1761285892697,-2436.12534229,0.0001999,2]
[392258619,1761285892744,-1530.36966293,0.00020039,2]
[392258620,1761285898671,-23.46992068,0.00020039,2]
[392258621,1761285898718,-300.0,0.00020084,2]
[392258622,1761285898766,-336.0,0.00020085,2]
[392258623,1761285898811,-336.0,0.00020088,2]
[392258624,1761285898858,-184.26569213,0.00020152,2]
[392258625,1761285898906,-336.0,0.00020166,2]
[392258626,1761285898955,-336.0,0.00020204,2]
[392258627,1761285899002,-336.0,0.00020242,2]
[392258628,1761285899049,-1200.0,0.00020294,2]
[392258629,1761285899096,-168.0,0.00020298,2]
[392258630,1761285899142,-668.0,0.00020299,2]
[392258631,1761285899187,-229.76739576,0.000203,2]
[392258632,1761285906711,5000.0,0.00019389,2]
[392258633,1761285914564,2519.88071525,0.00019389,2]
[392258634,1761285930087,2480.12928475,0.00019389,2]
[392258635,1761285930133,2519.87071525,0.00019389,2]
[392258636,1761285944919,169.56,0.00018764,30]
[392258637,1761285945358,211.95,0.00019546,30]
[392258638,1761285945767,254.34,0.00020327,30]
[392258639,1761285953469,5000.0,0.00019389,2]
[392258640,1761285964928,164.25185943,0.00019379,2]
[392258641,1761285976680,2315.88742532,0.00019389,2]
[392258642,1761285976723,2684.11257468,0.00019389,2]
[392258643,1761285989545,-295.82614086,0.00019449,2]
[392258644,1761285989592,-240.3551693,0.00019479,2]
[392258645,1761285989640,-500.0,0.000195,2]
[392258646,1761285989690,-181.22845061,0.0002,2]
[392258647,1761285989742,-1553.83958362,0.00020078,2]
[392258648,1761285989792,-1093.00398286,0.000203,2]
[392258649,1761285989839,-336.0,0.00020334,2]
[392258650,1761285989886,-399.5033455,0.00020372,2]
[392258651,1761285990153,-800.4966545,0.00020372,2]
[392258652,1761285990198,-151.69146,0.00020378,2]
[392258653,1761285990248,-197.82,0.00020385,2]
[392258654,1761285990294,-688.9,0.0002039,3]
[392258655,1761285990339,-344.45,0.0002039,3]
[392258656,1761285990384,-300.0,0.00020395,2]
[392258657,1761285990576,-2706.71279886,0.00020396,2]
[392258658,1761285990622,-4586.58440228,0.00020396,2]
[392258659,1761285995893,-464.92670898,0.000204,2]
[392258660,1761285995956,-10000.01,0.000204,2]
[392258661,1761285996135,-10000.01,0.000204,2]
[392258662,1761285996343,-10000.01,0.000204,2]
[392258663,1761285996499,-10000.01,0.000204,2]
[392258664,1761285996682,-10000.01,0.000204,2]
[392258665,1761285996843,-10000.01,0.000204,2]
[392258666,1761285998435,-10000.01,0.000204,2]
[392258667,1761285998611,-10000.01,0.000204,2]
[392258668,1761285998780,-10000.01,0.000204,2]
[392258669,1761286001647,-10000.01,0.000204,2]
[392258670,1761286001890,-10000.01,0.000204,2]
[392258671,1761286010517,-10000.01,0.000204,2]
[392258672,1761286010653,-10000.01,0.000204,2]
[392258673,1761286010812,-10000.01,0.000204,2]
[392258674,1761286022425,157.91,0.00020527,30]
[392258675,1761286031865,-687.0,0.00020247,2]
[392258676,1761286031915,-184.23,0.00020391,2]
[392258677,1761286031961,-300.0,0.00020398,2]
[392258678,1761286032141,-500.0,0.00020399,2]
[392258679,1761286032194,-500.0,0.00020399,2]
[392258680,1761286032259,-500.0,0.00020399,2]
[392258681,1761286032309,-500.0,0.00020399,2]
[392258682,1761286032355,-500.0,0.00020399,2]
[392258683,1761286032402,-500.0,0.00020399,2]
[392258684,1761286032449,-500.0,0.00020399,2]
[392258685,1761286032493,-157.55,0.00020399,2]
[392258686,1761286032677,-342.45,0.00020399,2]
[392258687,1761286032727,-500.0,0.00020399,2]
[392258688,1761286032772,-260.58136678,0.00020399,2]
[392258689,1761286032819,-186.77568493,0.00020399,2]
[392258690,1761286032865,-403.17313395,0.00020399,2]
[392258691,1761286032912,-500.0,0.00020399,2]
[392258692,1761286032964,-500.0,0.00020399,2]
[392258693,1761286033012,-500.0,0.00020399,2]
[392258694,1761286033061,-500.0,0.00020399,2]
[392258695,1761286033108,-500.0,0.00020399,2]
[392258696,1761286033153,-392.2668335,0.00020399,2]
[392258697,1761286033203,-329.51596168,0.00020399,2]
[392258698,1761286033363,-170.48403832,0.00020399,2]
[392258699,1761286033410,-500.0,0.00020399,2]
[392258700,1761286033458,-500.0,0.00020399,2]
[392258701,1761286033502,-500.0,0.00020399,2]
[392258702,1761286033548,-500.0,0.00020399,2]
[392258703,1761286033593,-500.0,0.00020399,2]
[392258704,1761286033639,-442.67371837,0.00020399,2]
[392258705,1761286033691,-500.0,0.00020399,2]
[392258706,1761286033737,-468.8994536,0.00020399,2]
[392258707,1761286033782,-523.0632819,0.00020399,2]
[392258708,1761286033832,-289.76901562,0.00020399,2]
[392258709,1761286034994,-210.23098438,0.00020399,2]
[392258710,1761286035003,-23.02036074,0.00020399,2]
[392258711,1761286035038,-276.97963926,0.00020399,2]
[392258712,1761286035047,-223.02036074,0.00020399,2]
[392258713,1761286035130,-26.97963926,0.00020399,2]
[392258714,1761286035178,-500.0,0.00020399,2]
[392258715,1761286035226,-500.0,0.00020399,2]
[392258716,1761286035274,-500.0,0.00020399,2]
[392258717,1761286035323,-500.0,0.00020399,2]
[392258718,1761286035371,-324.56789021,0.00020399,2]
[392258719,1761286035629,-5296.91494106,0.000204,2]
[392258720,1761286035668,-10000.01,0.000204,2]
[392258721,1761286040742,-687.0,0.0002038,2]
[392258722,1761286040787,-500.0,0.00020399,2]
[392258723,1761286040832,-500.0,0.00020399,2]
[392258724,1761286040885,-500.0,0.00020399,2]
[392258725,1761286040931,-500.0,0.00020399,2]
[392258726,1761286040978,-500.0,0.00020399,2]
[392258727,1761286041024,-500.0,0.00020399,2]
[392258728,1761286041070,-500.0,0.00020399,2]
[392258729,1761286041116,-500.0,0.00020399,2]
[392258730,1761286041176,-126.01,0.00020399,2]
[392258731,1761286041428,-373.99,0.00020399,2]
[392258732,1761286041483,-500.0,0.00020399,2]
[392258733,1761286041532,-500.0,0.00020399,2]
[392258734,1761286041576,-500.0,0.00020399,2]
[392258735,1761286041620,-500.0,0.00020399,2]
[392258736,1761286041666,-500.0,0.00020399,2]
[392258737,1761286041711,-500.0,0.00020399,2]
[392258738,1761286041759,-500.0,0.00020399,2]
[392258739,1761286041807,-464.85598566,0.00020399,2]
[392258740,1761286041853,-500.0,0.00020399,2]
[392258741,1761286042442,-373.99,0.00020146,2]
[392258742,1761286042475,-313.01,0.00020146,2]
[392258743,1761286042484,-9.30802868,0.00020399,2]
[392258744,1761286048113,200.0,0.00018258,7]
[392258745,1761286052769,-992.9396563,0.00020394,2]
[392258746,1761286052817,-490.69197132,0.00020399,2]
[392258747,1761286052863,-415.97299378,0.00020399,2]
[392258748,1761286052909,-517.01800311,0.00020399,2]
[392258749,1761286052957,-500.0,0.00020399,2]
[392258750,1761286053004,-500.0,0.00020399,2]
[392258751,1761286053051,-500.0,0.00020399,2]
[392258752,1761286053102,-500.0,0.00020399,2]
[392258753,1761286053152,-500.0,0.00020399,2]
[392258754,1761286053491,-166.76475098,0.00020385,2]
[392258755,1761286055837,-1.23524902,0.00020385,2]
[392258756,1761286055887,-354.13668775,0.00020399,2]
[392258757,1761286055935,-500.0,0.00020399,2]
[392258758,1761286056079,-8289.26612646,0.000204,2]
[392258759,1761286064927,-5000.0,0.00019178,2]
[392258760,1761286065007,-0.01,0.00020054,2]
[392258761,1761286070976,-1000.0,0.00019394,2]
[392258762,1761286071021,-167.99,0.00020054,2]
[392258763,1761286071063,-2148.91707894,0.000203,2]
[392258764,1761286071108,-168.0,0.00020302,2]
[392258765,1761286071152,-168.0,0.00020337,2]
[392258766,1761286071194,-1200.0,0.00020398,2]
[392258767,1761286071414,-294.19584212,0.000204,2]
[392258768,1761286074004,-5000.0,0.00020196,2]
[392258769,1761286074098,-0.01,0.00020399,2]
[392258770,1761286077008,-168.0,0.0002011,2]
[392258771,1761286077054,-499.99,0.00020399,2]
[392258772,1761286077104,-500.0,0.00020399,2]
[392258773,1761286077152,-500.0,0.00020399,2]
[392258774,1761286077202,-500.0,0.00020399,2]
[392258775,1761286077248,-500.0,0.00020399,2]
[392258776,1761286077294,-500.0,0.00020399,2]
[392258777,1761286077349,-500.0,0.00020399,2]
[392258778,1761286077394,-500.0,0.00020399,2]
[392258779,1761286077438,-500.0,0.00020399,2]
[392258780,1761286077480,-164.03,0.00020399,2]
[392258781,1761286077948,-335.97,0.00020399,2]
[392258782,1761286080085,-500.0,0.00020399,2]
[392258783,1761286080143,-500.0,0.00020399,2]
[392258784,1761286080199,-500.0,0.00020399,2]
[392258785,1761286080253,-500.0,0.00020399,2]
[392258786,1761286080306,-500.0,0.00020399,2]
[392258787,1761286080358,-500.0,0.00020399,2]
[392258788,1761286080410,-500.0,0.00020399,2]
[392258789,1761286080457,-500.0,0.00020399,2]
[392258790,1761286080505,-500.0,0.00020399,2]
[392258791,1761286080557,-309.5,0.00020399,2]
[392258792,1761286080913,-381.01,0.000204,2]
[392258793,1761286083258,-10000.01,0.000204,2]
[392258794,1761286086075,-300.0,0.00020399,2]
[392258795,1761286086148,-9400.01,0.000204,2]
[392258796,1761286089105,-500.0,0.00020399,2]
[392258797,1761286089158,-500.0,0.00020399,2]
[392258798,1761286089207,-500.0,0.00020399,2]
[392258799,1761286089255,-527.66005303,0.00020399,2]
[392258800,1761286089457,-500.0,0.00020399,2]
[392258801,1761286089468,-500.0,0.00020399,2]
[392258802,1761286089481,-500.0,0.00020399,2]
[392258803,1761286089494,-4444.68989394,0.000204,2]
[392258804,1761286095209,-926.70418649,0.000203,2]
[392258805,1761286095259,-3274.22520587,0.000203,2]
[392258806,1761286095311,-500.0,0.00020399,2]
[392258807,1761286095362,-98.15121528,0.00020399,2]
[392258808,1761286095525,-401.84878472,0.00020399,2]
[392258809,1761286098329,-3942.72453393,0.00020097,2]
[392258810,1761286098378,-500.0,0.00020399,2]
[392258811,1761286098425,-500.0,0.00020399,2]
[392258812,1761286098561,-114.56093214,0.00020399,2]
[392258813,1761286102889,156.99,0.00020615,30]
[392258814,1761286104222,-385.43906786,0.00020399,2]
[392258815,1761286104269,-414.85598566,0.00020399,2]
[392258816,1761286104315,-500.0,0.00020399,2]
[392258817,1761286104360,-500.0,0.00020399,2]
[392258818,1761286104407,-500.0,0.00020399,2]
[392258819,1761286104452,-500.0,0.00020399,2]
[392258820,1761286104496,-500.0,0.00020399,2]
[392258821,1761286104550,-500.0,0.00020399,2]
[392258822,1761286104595,-500.0,0.00020399,2]
[392258823,1761286104654,-500.0,0.00020399,2]
[392258824,1761286105049,-399.41989296,0.00020399,2]
[392258825,1761286125593,-100.58010704,0.00020399,2]
[392258826,1761286125641,-500.0,0.00020399,2]
[392258827,1761286125688,-364.85598566,0.00020399,2]
[392258828,1761286125734,-500.0,0.00020399,2]
[392258829,1761286125782,-500.0,0.00020399,2]
[392258830,1761286125829,-500.0,0.00020399,2]
[392258831,1761286125883,-500.0,0.00020399,2]
[392258832,1761286125930,-500.0,0.00020399,2]
[392258833,1761286125976,-500.0,0.00020399,2]
[392258834,1761286126022,-500.0,0.00020399,2]
[392258835,1761286126070,-500.0,0.00020399,2]
[392258836,1761286126467,-69.1378146,0.00020399,2]
[392258837,1761286131520,-430.8621854,0.00020399,2]
[392258838,1761286131565,-500.0,0.00020399,2]
[392258839,1761286131608,-500.0,0.00020399,2]
[392258840,1761286131652,-500.0,0.00020399,2]
[392258841,1761286131696,-500.0,0.00020399,2]
[392258842,1761286131740,-426.81331225,0.00020399,2]
[392258843,1761286131784,-500.0,0.00020399,2]
[392258844,1761286131827,-500.0,0.00020399,2]
[392258845,1761286131877,-500.0,0.00020399,2]
[392258846,1761286131922,-500.0,0.00020399,2]
[392258847,1761286132272,-284.6590047,0.00020399,2]
[392258848,1761286137519,-215.3409953,0.00020399,2]
[392258849,1761286137561,-500.0,0.00020399,2]
[392258850,1761286137607,-500.0,0.00020399,2]
[392258851,1761286137652,-500.0,0.00020399,2]
[392258852,1761286137695,-373.09434942,0.00020399,2]
[392258853,1761286137740,-500.0,0.00020399,2]
[392258854,1761286137785,-491.80606228,0.00020399,2]
[392258855,1761286137829,-500.0,0.00020399,2]
[392258856,1761286137879,-500.0,0.00020399,2]
[392258857,1761286137923,-500.0,0.00020399,2]
[392258858,1761286137967,-339.527186,0.00020399,2]
[392258859,1761286138326,-160.472814,0.00020399,2]
[392258860,1761286181994,166.66,0.00020734,30]
[392258861,1761286229859,196.0,0.00016,2]
[392258862,1761286229928,196.0,0.00016072,2]
[392258863,1761286230003,196.0,0.00016145,2]
[392258864,1761286230060,196.0,0.00016217,2]
[392258865,1761286230152,196.0,0.0001629,2]
[392258866,1761286230218,196.0,0.00016362,2]
[392258867,1761286230304,196.0,0.00016434,2]
[392258868,1761286230386,196.0,0.00016507,2]
[392258869,1761286230473,196.0,0.00016579,2]
[392258870,1761286230631,196.0,0.00016652,2]
[392258871,1761286230697,196.0,0.00016724,2]
[392258872,1761286230751,196.0,0.00016797,2]
[392258873,1761286230816,196.0,0.00016869,2]
[392258874,1761286230875,196.0,0.00016941,2]
[392258875,1761286230938,196.0,0.00017014,2]
[392258876,1761286230995,196.0,0.00017086,2]
[392258877,1761286231054,196.0,0.00017159,2]
[392258878,1761286231114,196.0,0.00017231,2]
[392258880,1761286231174,196.0,0.00017303,2]
[392258883,1761286231235,196.0,0.00017376,2]
[392258885,1761286231296,196.0,0.00017448,2]
[392258893,1761286231355,196.0,0.00017521,2]
[392258895,1761286231413,196.0,0.00017593,2]
[392258901,1761286231483,196.0,0.00017666,2]
[392258903,1761286231565,196.0,0.00017738,2]
[392258909,1761286231653,196.0,0.0001781,2]
[392258912,1761286231705,196.0,0.00017883,2]
[392258921,1761286231778,196.0,0.00017955,2]
[392258925,1761286231830,196.0,0.00018028,2]
[392258926,1761286231891,294.22993209,0.000181,2]
[392258927,1761286231905,-197.78273525,0.00019793,2]
[392258928,1761286231915,-5000.0,0.00020194,2]
[392258929,1761286231926,-500.0,0.00020373,2]
[392258930,1761286231936,-152.03905579,0.00020373,2]
[392258931,1761286231945,-504.72736898,0.00020373,2]
[392258932,1761286231956,-500.0,0.00020373,2]
[392258933,1761286231965,-500.0,0.00020373,2]
[392258935,1761286231975,-506.12589289,0.00020373,2]
[392258937,1761286231984,-502.69134678,0.00020373,2]
[392258939,1761286231993,-500.0,0.00020373,2]
[392258941,1761286232003,-500.0,0.00020373,2]
[392258943,1761286232012,-102.86126145,0.00020398,2]
[392258950,1761286237547,-528.08298489,0.0002,2]
[392258951,1761286237558,-3017.44297998,0.0002,2]
[392259250,1761286242758,-848.0249997,0.0002,2]
[392259252,1761286242769,-7561.16062098,0.0002,2]
[392259254,1761286242781,-15477.58026234,0.0002,2]
[392259256,1761286242792,-920.38129747,0.0002,2]
[392259259,1761286242803,-12997.33221106,0.0002,2]
[392259267,1761286242877,-350.0,0.0002,2]
[392259275,1761286242938,-1337.73728291,0.0002,2]
[392259277,1761286242951,-273.50271709,0.0002,2]
[392259289,1761286243054,-851.98011771,0.0002,2]
[392259291,1761286243066,-565.99163167,0.0002,2]
[392259514,1761286246066,-394.32409969,0.000198,2]
[392259516,1761286246078,-382.18994283,0.000198,2]
[392259522,1761286246121,-853.79934507,0.000198,2]
[392259524,1761286246133,-3369.68661241,0.000198,2]
[392259526,1761286246143,-459.99126439,0.0001999,2]
[392259528,1761286246153,-5990.12350306,0.0002,2]
[392259597,1761286260850,181.31,0.00018873,30]
[392259598,1761286261270,226.64,0.0001966,30]
[392259599,1761286261692,271.97,0.00020446,30]
[392259600,1761286267630,4021.78006791,0.00019314,2]
[392259601,1761286267680,978.21993209,0.00019314,2]
[392259602,1761286290637,5000.0,0.00019314,2]
[392259603,1761286313179,4021.79006791,0.00019314,2]
[392259604,1761286313226,978.20993209,0.00019314,2]
[392259605,1761286330572,-300.0,0.00019569,2]
[392259606,1761286331095,-8421.80006791,0.0001957,2]
[392259607,1761286331233,-10000.01,0.0001957,2]
[392259608,1761286331474,-2059.85596229,0.0001957,2]
[392259609,1761286331522,-1440.6242909,0.000198,2]
[392259610,1761286331761,-2999.04949362,0.0002,2]
[392259611,1761286331820,-10000.01,0.0002,2]
[392259612,1761286331856,-10000.01,0.0002,2]
[392259613,1761286331966,-10000.01,0.0002,2]
[392259614,1761286332109,-10000.01,0.0002,2]
[392259615,1761286332299,-3718.44010248,0.0002,2]
[392259616,1761286332346,-2563.12979504,0.0002,2]
[392259617,1761286336456,-5000.0,0.00019107,2]
[392259618,1761286336539,-0.01,0.000193,2]
[392259619,1761286336616,-299.99,0.000193,2]
[392259620,1761286336671,-211.32,0.00020356,2]
[392259621,1761286336721,-505.53357132,0.00020373,2]
[392259622,1761286336768,-195.03671925,0.00020373,2]
[392259623,1761286336818,-500.0,0.00020373,2]
[392259624,1761286336868,-324.07357032,0.00020373,2]
[392259625,1761286336920,-297.08521778,0.00020373,2]
[392259626,1761286336969,-1200.0,0.00020398,2]
[392259627,1761286337020,-486.63466348,0.00020398,2]
[392259628,1761286337073,-500.0,0.00020398,2]
[392259629,1761286337125,-460.6625157,0.00020398,2]
[392259630,1761286337364,-39.3374843,0.00020398,2]
[392259631,1761286337413,-502.85179481,0.00020398,2]
[392259632,1761286337461,-500.0,0.00020398,2]
[392259633,1761286337517,-500.0,0.00020398,2]
[392259634,1761286337569,-500.0,0.00020398,2]
[392259635,1761286337619,-500.0,0.00020398,2]
[392259636,1761286337671,-500.0,0.00020398,2]
[392259637,1761286337720,-500.0,0.00020398,2]
[392259638,1761286337772,-500.0,0.00020398,2]
[392259639,1761286337821,-500.0,0.00020398,2]
[392259640,1761286337873,-415.63144178,0.00020398,2]
[392259641,1761286338747,-84.36855822,0.00020398,2]
[392259642,1761286338759,-52.70282082,0.00020398,2]
[392259643,1761286339488,181.13,0.00018876,30]
[392259644,1761286339546,-355.39217918,0.00020398,2]
[392259645,1761286339603,-500.0,0.00020398,2]
[392259646,1761286339654,-500.0,0.00020398,2]
[392259647,1761286339704,-500.0,0.00020398,2]
[392259648,1761286339756,-500.0,0.00020398,2]
[392259649,1761286339812,-500.0,0.00020398,2]
[392259650,1761286339958,-500.0,0.00020398,2]
[392259651,1761286340014,-500.0,0.00020398,2]
[392259652,1761286340063,-500.0,0.00020398,2]
[392259653,1761286340116,-500.0,0.00020398,2]
[392259654,1761286340364,-500.0,0.00020398,2]
[392259655,1761286340418,-500.0,0.00020398,2]
[392259656,1761286340471,-500.0,0.00020398,2]
[392259657,1761286340523,-360.4376179,0.00020398,2]
[392259658,1761286340574,-500.0,0.00020398,2]
[392259659,1761286340624,-500.0,0.00020398,2]
[392259660,1761286340675,-500.0,0.00020398,2]
[392259661,1761286340728,-500.0,0.00020398,2]
[392259662,1761286340780,-500.0,0.00020398,2]
[392259663,1761286340832,-500.0,0.00020398,2]
[392259664,1761286341020,-500.0,0.00020398,2]
[392259665,1761286341070,-638.84286794,0.00020398,2]
[392259666,1761286341125,-500.0,0.00020398,2]
[392259667,1761286341180,-500.0,0.00020398,2]